[Event "29th CRO-chT Junior 2020"]
[Site "Cakovec"]
[Date "2020.07.15"]
[Round "3.20"]
[White "Zekic, Patrik"]
[Black "Bedic, Noemi"]
[Result "1/2-1/2"]
[ECO "E92"]
[WhiteElo "1699"]
[BlackElo "1712"]
[Annotator "NA RC"]
[PlyCount "133"]
[EventDate "2020.07.14"]
[EventType "team-tourn"]
[EventCountry "CRO"]
[SourceTitle "playchess.com"]
[Source "ChessBase"]
[SourceQuality "1"]
[TimeControl "5400+30"]

1. d4 {[%emt 0:00:30]} Nf6 {[%emt 0:00:30]} 2. c4 {[%emt 0:00:30]} g6 {[%emt 0:00:00]} 3. Nc3 {[%emt 0:00:30]} Bg7 {[%emt 0:00:00]} 4. Nf3 {[%emt 0:00:00]} O-O {[%emt 0:00:00]} 5. e4 {[%emt 0:00:00]} d6 {[%emt 0:00:00]} 6. Be2 {[%emt 0:03:30]} e5 {[%emt 0:00:00]} 7. d5 {[%emt 0:00:30]} a5 {[%emt 0:00:00]} 8. Bg5 {[%emt 0:05:30]} h6 {[%emt 0:00:30]} 9. Be3 {[%emt 0:00:30]} Ng4 {[%emt 0:00:00]} 10. Qd3 {[%emt 0:20:30]} Nxe3 {[%emt 0:03:00]} 11. Qxe3 {[%emt 0:02:30]} Na6 {[%emt 0:05:30]} 12. Bd3 {[%emt 0:08:30]} Nc5 {[%emt 0:09:30]} 13. Bc2 {[%emt 0:02:30]} a4 {[%emt 0:00:30]} 14. Nd2 {[%emt 0:00:30]} f5 {[%emt 0:00:30]} 15. f3 {[%emt 0:01:30]} f4 {[%emt 0:00:30]} 16. Qf2 {[%emt 0:05:30]} Bf6 {[%emt 0:08:30]} 17. h4 {[%emt 0:11:30]} Rf7 {[%emt 0:14:30]} 18. O-O-O {[%emt 0:04:30]} c6 {[%emt 0:06:30]} 19. Rdg1 {[%emt 0:04:30]} Qb6 {[%emt 0:01:30]} 20. Qe2 {[%emt 0:02:30]} a3 {[%emt 0:04:30]} 21. b3 {[%emt 0:00:30]} Bxh4 {[%emt 0:02:30]} 22. Rxh4 {[%emt 0:04:37]} Nxb3+ {[%emt 0:00:00]} 23. Bxb3 {[%emt 0:01:04]} Qxg1+ {[%emt 0:00:00]} 24. Qf1 {[%emt 0:01:01]} Qd4 {[%emt 0:06:30]} 25. Kc2 {[%emt 0:00:30]} Kg7 {[%emt 0:02:30]} 26. Rh1 {[%emt 0:04:40]} cxd5 {[%emt 0:01:30]} 27. exd5 {[%emt 0:02:01]} Bf5+ {[%emt 0:00:30]} 28. Nde4 {[%emt 0:00:13]} b5 {[%emt 0:11:30]} 29. Nxb5 {[%emt 0:03:43]} Bxe4+ {[%emt 0:01:30]} 30. fxe4 {[%emt 0:00:07]} Qxe4+ {[%emt 0:00:00]} 31. Kc3 {[%emt 0:01:05]} Qe3+ {[%emt 0:07:50]} 32. Qd3 {[%emt 0:01:06]} Qc5 {[%emt 0:01:03]} 33. Qh3 {[%emt 0:02:04]} h5 {[%emt 0:00:06]} 34. Qd3 {[%emt 0:01:26]} Re8 {[%emt 0:01:53]} 35. Qe4 {[%emt 0:00:30]} Rb8 {[%emt 0:01:35]} 36. Kd2 {[%emt 0:00:42]} Rf6 {[%emt 0:02:46]} 37. Ke2 {[%emt 0:00:42]} Rbf8 {[%emt 0:00:46]} 38. Bc2 {[%emt 0:00:39]} Rf5 {[%emt 0:01:04]} 39. Rh3 {[%emt 0:01:31]} Rg5 {[%emt 0:00:28]} 40. Rxa3 {[%emt 0:01:54]} f3+ {[%emt 0:01:25]} 41. Rxf3 {[%emt 0:02:58]} Rxg2+ {[%emt 0:00:11]} 42. Kd3 {[%emt 0:00:00]} Rxf3+ {[%emt 0:01:52]} 43. Qxf3 {[%emt 0:00:00]} Rg4 {[%emt 0:00:22]} 44. Ke2 {[%emt 0:01:50]} Qxc4+ {[%emt 0:00:33]} 45. Qd3 {[%emt 0:00:58]} Rg2+ {[%emt 0:01:49]} 46. Kd1 {[%emt 0:00:33]} Rxc2 {[%emt 0:02:28]} 47. Qxc2 {[%emt 0:00:08]} Qxd5+ {[%emt 0:00:08]} 48. Qd2 {[%emt 0:00:26]} Qxb5 {[%emt 0:00:13]} 49. Qxd6 {[%emt 0:00:24]} Qa4+ {[%emt 0:01:15]} 50. Ke1 {[%emt 0:00:30]} Qxa2 {[%emt 0:01:03]} 51. Qxe5+ {[%emt 0:00:17]} Kh7 {[%emt 0:00:00]} 52. Qe7+ {[%emt 0:00:00]} Kg8 {[%emt 0:02:17]} 53. Qe8+ {[%emt 0:00:02]} Kg7 {[%emt 0:00:08]} 54. Qe5+ {[%emt 0:00:07]} Kf8 {[%emt 0:00:49]} 55. Qb8+ {[%emt 0:01:25]} Ke7 {[%emt 0:00:18]} 56. Qc7+ {[%emt 0:00:49]} Ke6 {[%emt 0:00:49]} 57. Qc6+ {[%emt 0:00:27]} Kf5 {[%emt 0:00:17]} 58. Qf3+ {[%emt 0:00:19]} Ke6 {[%emt 0:01:03]} 59. Qe4+ {[%emt 0:00:14]} Kf6 {[%emt 0:00:14]} 60. Qf4+ {[%emt 0:00:15]} Ke7 {[%emt 0:00:12]} 61. Qg5+ {[%emt 0:00:25]} Kf7 {[%emt 0:00:21]} 62. Qf4+ {[%emt 0:00:11]} Ke6 {[%emt 0:00:07]} 63. Qe4+ {[%emt 0:00:15]} Kf6 {[%emt 0:00:15]} 64. Qf4+ {[%emt 0:00:08]} Kg7 {[%emt 0:00:16]} 65. Qe5+ {[%emt 0:00:10]} Kh6 {[%emt 0:00:11]} 66. Qh8+ {[%emt 0:00:36]} Kg5 {[%emt 0:00:07]} 67. Qe5+ {[%emt 0:00:01]} 1/2-1/2

[Event "29th CRO-chT Junior 2020"]
[Site "Cakovec"]
[Date "2020.07.15"]
[Round "4.2"]
[White "Mijic, Karlo"]
[Black "Vidovic, Dominik"]
[Result "1-0"]
[ECO "C02"]
[WhiteElo "1729"]
[BlackElo "1484"]
[Annotator "NA RC"]
[PlyCount "167"]
[EventDate "2020.07.14"]
[EventType "team-tourn"]
[EventCountry "CRO"]
[SourceTitle "playchess.com"]
[Source "ChessBase"]
[SourceQuality "1"]
[TimeControl "5400+30"]

1. e4 {[%emt 0:00:30]} e6 {[%emt 0:00:30]} 2. d4 {[%emt 0:00:00]} d5 {[%emt 0:00:00]} 3. e5 {[%emt 0:00:00]} c5 {[%emt 0:00:00]} 4. c3 {[%emt 0:00:00]} Nc6 {[%emt 0:01:30]} 5. Nf3 {[%emt 0:00:00]} Qb6 {[%emt 0:00:30]} 6. b3 {[%emt 0:02:30]} cxd4 {[%emt 0:03:30]} 7. cxd4 {[%emt 0:00:00]} Bb4+ {[%emt 0:02:30]} 8. Ke2 {[%emt 0:03:00]} Qc7 {[%emt 0:10:30]} 9. a3 {[%emt 0:02:30]} Ba5 {[%emt 0:00:30]} 10. Bb2 {[%emt 0:00:00]} Nge7 {[%emt 0:01:30]} 11. b4 {[%emt 0:00:00]} Bb6 {[%emt 0:01:30]} 12. Nc3 {[%emt 0:00:30]} a6 {[%emt 0:02:30]} 13. Na4 {[%emt 0:04:30]} Nf5 {[%emt 0:05:30]} 14. Nxb6 {[%emt 0:04:30]} Qxb6 {[%emt 0:01:30]} 15. Qd3 {[%emt 0:00:00]} Bd7 {[%emt 0:01:30]} 16. g4 {[%emt 0:01:00]} Nfe7 {[%emt 0:00:30]} 17. Ke1 {[%emt 0:04:30]} O-O {[%emt 0:02:30]} 18. Ng5 {[%emt 0:02:30]} Ng6 {[%emt 0:03:30]} 19. h4 {[%emt 0:03:30]} h6 {[%emt 0:03:30]} 20. Rd1 {[%emt 0:01:30]} Nxb4 {[%emt 0:03:30]} 21. axb4 {[%emt 0:01:30]} Qxb4+ {[%emt 0:00:30]} 22. Bc3 {[%emt 0:00:30]} Qb3 {[%emt 0:02:30]} 23. Nf3 {[%emt 0:01:30]} Bb5 {[%emt 0:06:30]} 24. Qe3 {[%emt 0:01:30]} Bxf1 {[%emt 0:01:30]} 25. Rxf1 {[%emt 0:00:30]} Nf4 {[%emt 0:06:30]} 26. Qxf4 {[%emt 0:02:30]} Qxc3+ {[%emt 0:01:30]} 27. Ke2 {[%emt 0:00:30]} b5 {[%emt 0:03:30]} 28. Qd2 {[%emt 0:00:30]} Qc4+ {[%emt 0:00:30]} 29. Qd3 {[%emt 0:00:30]} Rfc8 {[%emt 0:02:30]} 30. Qxc4 {[%emt 0:00:30]} dxc4 {[%emt 0:00:30]} 31. Rb1 {[%emt 0:00:30]} c3 {[%emt 0:02:30]} 32. Kd3 {[%emt 0:00:00]} Rab8 {[%emt 0:01:30]} 33. Rb3 {[%emt 0:02:00]} b4 {[%emt 0:01:30]} 34. Rfb1 {[%emt 0:00:00]} a5 {[%emt 0:01:30]} 35. Ne1 {[%emt 0:00:00]} Rc7 {[%emt 0:03:30]} 36. Ra1 {[%emt 0:00:30]} Ra7 {[%emt 0:00:30]} 37. Nc2 {[%emt 0:01:30]} Kf8 {[%emt 0:01:30]} 38. Ra4 {[%emt 0:00:30]} Rba8 {[%emt 0:02:30]} 39. f4 {[%emt 0:01:30]} Ke7 {[%emt 0:00:30]} 40. Ke4 {[%emt 0:02:30]} Ra6 {[%emt 0:05:28]} 41. Kd3 {[%emt 0:03:30]} Kd7 {[%emt 0:00:55]} 42. Nxb4 {[%emt 0:00:30]} axb4 {[%emt 0:00:43]} 43. Rxa6 {[%emt 0:01:30]} Rxa6 {[%emt 0:00:02]} 44. Rxb4 {[%emt 0:00:30]} Rc6 {[%emt 0:01:26]} 45. Rb7+ {[%emt 0:00:00]} Kc8 {[%emt 0:01:01]} 46. Rb1 {[%emt 0:00:00]} Kd7 {[%emt 0:02:14]} 47. Rc1 {[%emt 0:00:30]} Ra6 {[%emt 0:01:19]} 48. Rb1 {[%emt 0:04:30]} Ra2 {[%emt 0:02:46]} 49. Rb7+ {[%emt 0:00:30]} Ke8 {[%emt 0:00:26]} 50. Rb8+ {[%emt 0:00:30]} Ke7 {[%emt 0:00:48]} 51. Rg8 {[%emt 0:00:30]} Rg2 {[%emt 0:02:15]} 52. g5 {[%emt 0:00:30]} c2 {[%emt 0:01:29]} 53. Rc8 {[%emt 0:00:00]} c1=Q {[%emt 0:00:19]} 54. Rxc1 {[%emt 0:00:00]} Rh2 {[%emt 0:00:58]} 55. Rc7+ {[%emt 0:00:30]} Ke8 {[%emt 0:00:05]} 56. g6 {[%emt 0:00:30]} fxg6 {[%emt 0:00:48]} 57. Rxg7 {[%emt 0:00:30]} Rxh4 {[%emt 0:00:56]} 58. Rxg6 {[%emt 0:00:00]} Ke7 {[%emt 0:01:00]} 59. Ke4 {[%emt 0:03:00]} Rh1 {[%emt 0:01:10]} 60. Rg7+ {[%emt 0:01:30]} Ke8 {[%emt 0:01:36]} 61. Rg2 {[%emt 0:00:00]} Re1+ {[%emt 0:00:29]} 62. Kf3 {[%emt 0:00:00]} Rf1+ {[%emt 0:00:46]} 63. Rf2 {[%emt 0:00:30]} Rd1 {[%emt 0:00:03]} 64. Ke3 {[%emt 0:00:00]} Re1+ {[%emt 0:00:57]} 65. Re2 {[%emt 0:00:00]} Rh1 {[%emt 0:00:27]} 66. Rd2 {[%emt 0:00:30]} Re1+ {[%emt 0:00:36]} 67. Kf2 {[%emt 0:00:00]} Re4 {[%emt 0:00:49]} 68. Kf3 {[%emt 0:00:00]} Re1 {[%emt 0:00:04]} 69. Rh2 {[%emt 0:00:00]} Rf1+ {[%emt 0:00:25]} 70. Ke3 {[%emt 0:00:00]} Re1+ {[%emt 0:00:33]} 71. Kf2 {[%emt 0:00:30]} Re4 {[%emt 0:00:14]} 72. Rxh6 {[%emt 0:00:30]} Ke7 {[%emt 0:01:50]} 73. f5 {[%emt 0:01:30]} Rf4+ {[%emt 0:00:41]} 74. Ke3 {[%emt 0:00:00]} Rxf5 {[%emt 0:00:03]} 75. Rh7+ {[%emt 0:00:00]} Rf7 {[%emt 0:01:04]} 76. Rxf7+ {[%emt 0:00:30]} Kxf7 {[%emt 0:00:02]} 77. Kd3 {[%emt 0:01:30]} Ke7 {[%emt 0:00:03]} 78. Kc3 {[%emt 0:00:00]} Kd7 {[%emt 0:00:25]} 79. Kb4 {[%emt 0:00:00]} Kc6 {[%emt 0:01:11]} 80. Kc4 {[%emt 0:00:30]} Kd7 {[%emt 0:01:14]} 81. Kb5 {[%emt 0:00:00]} Kc7 {[%emt 0:00:10]} 82. Kc5 {[%emt 0:00:00]} Kd7 {[%emt 0:00:20]} 83. Kb6 {[%emt 0:00:30]} Ke7 {[%emt 0:01:06]} 84. Kc7 {[%emt 0:00:00]} 1-0

[Event "29th CRO-chT Junior 2020"]
[Site "Cakovec"]
[Date "2020.07.15"]
[Round "4.3"]
[White "Vuk, Sebastijan"]
[Black "Bedic, Noemi"]
[Result "0-1"]
[ECO "C68"]
[WhiteElo "1382"]
[BlackElo "1712"]
[Annotator "NA RC"]
[PlyCount "74"]
[EventDate "2020.07.14"]
[EventType "team-tourn"]
[EventCountry "CRO"]
[SourceTitle "playchess.com"]
[Source "ChessBase"]
[SourceQuality "1"]
[TimeControl "5400+30"]

1. e4 {[%emt 0:00:30]} e5 {[%emt 0:00:30]} 2. Nf3 {[%emt 0:00:00]} Nc6 {[%emt 0:00:00]} 3. Bb5 {[%emt 0:00:00]} a6 {[%emt 0:00:00]} 4. Bxc6 {[%emt 0:00:00]} dxc6 {[%emt 0:00:00]} 5. Nc3 {[%emt 0:00:00]} Bd6 {[%emt 0:00:00]} 6. d3 {[%emt 0:00:30]} Ne7 {[%emt 0:00:00]} 7. Be3 {[%emt 0:00:30]} O-O {[%emt 0:02:00]} 8. h3 {[%emt 0:01:30]} h6 {[%emt 0:01:30]} 9. O-O {[%emt 0:00:30]} Be6 {[%emt 0:00:30]} 10. Re1 {[%emt 0:03:30]} Ng6 {[%emt 0:00:30]} 11. d4 {[%emt 0:00:30]} Qe7 {[%emt 0:05:30]} 12. Qe2 {[%emt 0:05:30]} Rad8 {[%emt 0:03:30]} 13. a3 {[%emt 0:00:30]} Rfe8 {[%emt 0:01:30]} 14. Na2 {[%emt 0:04:30]} exd4 {[%emt 0:05:30]} 15. Nxd4 {[%emt 0:03:30]} Bxa2 {[%emt 0:08:30]} 16. Nf5 {[%emt 0:08:30]} Qxe4 {[%emt 0:00:30]} 17. Nxd6 {[%emt 0:07:30]} Rxd6 {[%emt 0:00:30]} 18. Rxa2 {[%emt 0:03:30]} Nh4 {[%emt 0:00:00]} 19. Qg4 {[%emt 0:01:30]} Rg6 {[%emt 0:03:00]} 20. Qxe4 {[%emt 0:02:30]} Rxe4 {[%emt 0:00:30]} 21. Kh1 {[%emt 0:08:30]} Nxg2 {[%emt 0:00:00]} 22. Re2 {[%emt 0:03:30]} Nxe3 {[%emt 0:00:00]} 23. Rxe3 {[%emt 0:02:30]} Rxe3 {[%emt 0:00:00]} 24. fxe3 {[%emt 0:00:30]} Rg3 {[%emt 0:00:00]} 25. e4 {[%emt 0:00:30]} Rxh3+ {[%emt 0:00:30]} 26. Kg2 {[%emt 0:00:30]} Re3 {[%emt 0:00:00]} 27. Kf2 {[%emt 0:00:30]} Rxe4 {[%emt 0:00:00]} 28. Ra1 {[%emt 0:00:00]} f5 {[%emt 0:00:30]} 29. Rd1 {[%emt 0:00:00]} Re7 {[%emt 0:00:30]} 30. Rd8+ {[%emt 0:00:30]} Kf7 {[%emt 0:00:30]} 31. Rb8 {[%emt 0:00:00]} b6 {[%emt 0:00:00]} 32. Ra8 {[%emt 0:01:00]} a5 {[%emt 0:00:00]} 33. b4 {[%emt 0:00:30]} axb4 {[%emt 0:00:30]} 34. axb4 {[%emt 0:00:00]} g5 {[%emt 0:00:30]} 35. Rh8 {[%emt 0:00:00]} Kg6 {[%emt 0:00:00]} 36. Rg8+ {[%emt 0:00:30]} Kh5 {[%emt 0:00:00]} 37. Rf8 {[%emt 0:00:30]} f4 {[%emt 0:00:30]} 0-1

[Event "29th CRO-chT Junior 2020"]
[Site "Cakovec"]
[Date "2020.07.15"]
[Round "4.4"]
[White "Jaksic, Josip"]
[Black "Kristofic, Dino"]
[Result "1-0"]
[ECO "B72"]
[WhiteElo "1616"]
[BlackElo "1290"]
[Annotator "NA RC"]
[PlyCount "37"]
[EventDate "2020.07.14"]
[EventType "team-tourn"]
[EventCountry "CRO"]
[SourceTitle "playchess.com"]
[Source "ChessBase"]
[SourceQuality "1"]
[TimeControl "5400+30"]

1. e4 {[%emt 0:00:30]} c5 {[%emt 0:00:30]} 2. Nf3 {[%emt 0:00:00]} d6 {[%emt 0:00:30]} 3. d4 {[%emt 0:00:00]} cxd4 {[%emt 0:00:30]} 4. Nxd4 {[%emt 0:00:30]} Nf6 {[%emt 0:00:30]} 5. Nc3 {[%emt 0:00:30]} g6 {[%emt 0:00:30]} 6. Be2 {[%emt 0:00:30]} Bg7 {[%emt 0:00:30]} 7. Be3 {[%emt 0:00:30]} O-O {[%emt 0:01:30]} 8. Qd2 {[%emt 0:02:30]} b6 {[%emt 0:05:30]} 9. Bf3 {[%emt 0:12:30]} e5 {[%emt 0:07:30]} 10. Ndb5 {[%emt 0:01:30]} Ne8 {[%emt 0:01:30]} 11. Qd5 {[%emt 0:02:30]} Nc7 {[%emt 0:11:30]} 12. Nxc7 {[%emt 0:01:30]} Qxc7 {[%emt 0:00:30]} 13. Qxa8 {[%emt 0:10:30]} Nc6 {[%emt 0:00:30]} 14. Nd5 {[%emt 0:01:30]} Qd7 {[%emt 0:02:30]} 15. Nxb6 {[%emt 0:01:30]} Qc7 {[%emt 0:00:30]} 16. Nd5 {[%emt 0:01:30]} Qd7 {[%emt 0:00:30]} 17. Ne7+ {[%emt 0:00:30]} Nxe7 {[%emt 0:01:30]} 18. Qxa7 {[%emt 0:00:30]} Qd8 {[%emt 0:10:30]} 19. O-O {[%emt 0:01:30]} 1-0

[Event "29th CRO-chT Junior 2020"]
[Site "Cakovec"]
[Date "2020.07.15"]
[Round "4.5"]
[White "Haidinger, Erik"]
[Black "Jambresic, Filip"]
[Result "*"]
[ECO "D02"]
[WhiteElo "1767"]
[BlackElo "2077"]
[Annotator "RC"]
[PlyCount "72"]
[EventDate "2020.07.14"]
[EventType "team-tourn"]
[EventCountry "CRO"]
[SourceTitle "playchess.com"]
[Source "ChessBase"]
[SourceQuality "1"]
[TimeControl "5400+30"]

1. d4 {[%emt 0:00:30]} Nf6 {[%emt 0:00:30]} 2. Bf4 {[%emt 0:00:00]} e6 {[%emt 0:00:30]} 3. Nf3 {[%emt 0:00:00]} c5 {[%emt 0:00:30]} 4. e3 {[%emt 0:00:30]} Nc6 {[%emt 0:02:30]} 5. c3 {[%emt 0:00:30]} d5 {[%emt 0:01:30]} 6. Nbd2 {[%emt 0:00:30]} Bd6 {[%emt 0:00:30]} 7. Ne5 {[%emt 0:03:30]} Qc7 {[%emt 0:04:30]} 8. Ndf3 {[%emt 0:01:30]} O-O {[%emt 0:01:30]} 9. Bd3 {[%emt 0:01:30]} h6 {[%emt 0:07:30]} 10. Nxc6 {[%emt 0:02:30]} bxc6 {[%emt 0:00:30]} 11. Ne5 {[%emt 0:01:30]} Rb8 {[%emt 0:10:30]} 12. Rb1 {[%emt 0:03:30]} c4 {[%emt 0:00:30]} 13. Bc2 {[%emt 0:00:30]} Re8 {[%emt 0:25:30]} 14. Qf3 {[%emt 0:03:30]} Nd7 {[%emt 0:04:30]} 15. Qg3 {[%emt 0:02:30]} Bxe5 {[%emt 0:14:30]} 16. dxe5 {[%emt 0:01:30]} Kf8 {[%emt 0:00:30]} 17. Qh4 {[%emt 0:13:30]} Nxe5 {[%emt 0:04:23]} 18. Qh5 {[%emt 0:01:30]} f6 {[%emt 0:00:37]} 19. h4 {[%emt 0:02:30]} Rb6 {[%emt 0:09:26]} 20. Qg6 {[%emt 0:12:30]} Qf7 {[%emt 0:02:17]} 21. Bxe5 {[%emt 0:00:30]} fxe5 {[%emt 0:00:18]} 22. Qg3 {[%emt 0:01:30]} Qf6 {[%emt 0:00:17]} 23. Rf1 {[%emt 0:01:30]} Ba6 {[%emt 0:00:30]} 24. e4 {[%emt 0:00:30]} Qf4 {[%emt 0:00:30]} 25. Qg6 {[%emt 0:00:30]} d4 {[%emt 0:02:34]} 26. g3 {[%emt 0:04:30]} Qf6 {[%emt 0:00:51]} 27. Qh5 {[%emt 0:00:30]} Qf7 {[%emt 0:02:42]} 28. Qxe5 {[%emt 0:00:30]} d3 {[%emt 0:00:07]} 29. Bd1 {[%emt 0:00:30]} Reb8 {[%emt 0:01:07]} 30. f4 {[%emt 0:01:30]} Qf6 {[%emt 0:00:11]} 31. Qd6+ {[%emt 0:02:30]} Qe7 {[%emt 0:00:01]} 32. Qe5 {[%emt 0:00:30]} Rb5 {[%emt 0:00:32]} 33. Qd4 {[%emt 0:00:30]} Rxb2 {[%emt 0:00:30]} 34. Rxb2 {[%emt 0:00:30]} Rxb2 {[%emt 0:00:00]} 35. f5 {[%emt 0:01:30]} e5 {[%emt 0:00:00]} 36. Qe3 {[%emt 0:00:00]} Rb5 {[%emt 0:02:41]} *

[Event "29th CRO-chT Junior 2020"]
[Site "Cakovec"]
[Date "2020.07.15"]
[Round "4.8"]
[White "Novosel, Lovro"]
[Black "Kresic, Vid"]
[Result "1-0"]
[ECO "C60"]
[WhiteElo "1719"]
[BlackElo "1216"]
[Annotator "NA RC"]
[PlyCount "63"]
[EventDate "2020.07.14"]
[EventType "team-tourn"]
[EventCountry "CRO"]
[SourceTitle "playchess.com"]
[Source "ChessBase"]
[SourceQuality "1"]
[TimeControl "5400+30"]

1. e4 {[%emt 0:00:30]} e5 {[%emt 0:00:30]} 2. Nf3 {[%emt 0:00:00]} Nc6 {[%emt 0:00:30]} 3. Bb5 {[%emt 0:00:00]} f6 {[%emt 0:01:30]} 4. O-O {[%emt 0:01:30]} Bc5 {[%emt 0:01:30]} 5. c3 {[%emt 0:00:30]} a6 {[%emt 0:01:30]} 6. Ba4 {[%emt 0:00:30]} b5 {[%emt 0:04:30]} 7. Bb3 {[%emt 0:01:30]} d6 {[%emt 0:01:30]} 8. d4 {[%emt 0:00:30]} Bb6 {[%emt 0:01:30]} 9. h3 {[%emt 0:00:30]} Bb7 {[%emt 0:01:30]} 10. Be3 {[%emt 0:02:30]} Na5 {[%emt 0:03:30]} 11. Bxg8 {[%emt 0:00:30]} Rxg8 {[%emt 0:00:30]} 12. Nbd2 {[%emt 0:00:30]} Rf8 {[%emt 0:02:30]} 13. Nh4 {[%emt 0:01:30]} Kf7 {[%emt 0:02:30]} 14. b4 {[%emt 0:00:30]} Nc4 {[%emt 0:01:30]} 15. Nxc4 {[%emt 0:03:30]} bxc4 {[%emt 0:00:30]} 16. Qg4 {[%emt 0:00:00]} Bc8 {[%emt 0:02:30]} 17. Nf5 {[%emt 0:02:00]} Bxf5 {[%emt 0:02:30]} 18. exf5 {[%emt 0:00:00]} d5 {[%emt 0:02:30]} 19. dxe5 {[%emt 0:01:00]} fxe5 {[%emt 0:00:30]} 20. Bxb6 {[%emt 0:01:30]} cxb6 {[%emt 0:00:30]} 21. Rad1 {[%emt 0:00:30]} b5 {[%emt 0:01:30]} 22. Rfe1 {[%emt 0:00:30]} e4 {[%emt 0:01:30]} 23. Rd4 {[%emt 0:00:30]} Ra7 {[%emt 0:02:30]} 24. Red1 {[%emt 0:00:30]} Rd7 {[%emt 0:01:30]} 25. f6 {[%emt 0:02:30]} Kxf6 {[%emt 0:13:30]} 26. Rxe4 {[%emt 0:01:30]} dxe4 {[%emt 0:03:30]} 27. Rxd7 {[%emt 0:00:00]} Qc8 {[%emt 0:00:30]} 28. Qxg7+ {[%emt 0:00:00]} Kf5 {[%emt 0:01:30]} 29. Rd5+ {[%emt 0:00:30]} Ke6 {[%emt 0:00:30]} 30. Re5+ {[%emt 0:00:30]} Kd6 {[%emt 0:01:30]} 31. Qe7+ {[%emt 0:00:30]} Kc6 {[%emt 0:00:30]} 32. Re6+ {[%emt 0:37:30]} 1-0

[Event "29th CRO-chT Junior 2020"]
[Site "Cakovec"]
[Date "2020.07.15"]
[Round "4.12"]
[White "Cecic-Sule, Dino"]
[Black "Colev, Ivor"]
[Result "1-0"]
[ECO "A80"]
[WhiteElo "1695"]
[BlackElo "1893"]
[Annotator "NA RC"]
[PlyCount "95"]
[EventDate "2020.07.14"]
[EventType "team-tourn"]
[EventCountry "CRO"]
[SourceTitle "playchess.com"]
[Source "ChessBase"]
[SourceQuality "1"]
[TimeControl "5400+30"]

{[%evp 8,61,-1,-22,17,18,34,-8,-24,-24,-14,-33,-20,0,16,0,0,-6,0,2,59,0,24,7,14,0,32767,32767,32767,32767,32767,32767,32767,43,57,32767,32767,32767,32767,0,7,0,13,0,32767,0,0,-17,0,0,0,-20,130,32767,32767,7]} 1. d4 {[%emt 0:00:30]} f5 {[%emt 0:00:30]} 2. g4 {[%emt 0:00:00]} fxg4 {[%emt 0:00:00]} 3. Bg5 {[%emt 0:00:00]} d5 {[%emt 0:02:00]} 4. Nc3 {[%emt 0:00:00]} Nf6 {[%emt 0:00:30]} 5. h3 {[%emt 0:04:00]} g3 {[%emt 0:10:30]} 6. fxg3 {[%emt 0:01:30] A80: Dutch Defence: Unusual White second moves.} Bf5 {[%emt 0:00:30] [#]} 7. Bxf6 $146 {[%emt 0:02:30]} ({Predecessor:} 7. Bg2 c6 8. Qd2 Nbd7 9. Nf3 e6 10. g4 Be4 11. a3 Qc7 12. Bf4 Bd6 13. Bxd6 Qxd6 {1-0 (35) Spelec,D (2027)-Pirs,M (2068) Sentjur 2013}) 7... exf6 {[%emt 0:02:30]} 8. e3 {[%emt 0:08:30]} Bb4 {[%emt 0:04:30]} 9. Bd3 {[%emt 0:01:30]} Bxc3+ {[%emt 0:06:30]} 10. bxc3 {[%emt 0:00:30]} Be6 {[%emt 0:00:00]} 11. Qf3 {[%emt 0:04:30]} Nd7 {[%emt 0:07:00]} 12. Ne2 {[%emt 0:01:30]} Qe7 {[%emt 0:04:30]} 13. Nf4 {[%emt 0:01:30]} O-O-O {[%emt 0:00:30]} (13... Bf7 $11) 14. Kd2 {[%emt 0:06:30]} (14. c4 $14) 14... c6 {[%emt 0:03:30]} 15. a4 {[%emt 0:05:30]} Bf7 {[%emt 0:04:30]} 16. Bf5 {[%emt 0:05:30]} g5 {[%emt 0:02:30]} 17. Nd3 {[%emt 0:00:30]} Kb8 {[%emt 0:01:30]} 18. Bxd7 {[%emt 0:00:30]} Rxd7 {[%emt 0:01:30]} 19. Nc5 {[%emt 0:00:30]} Rd6 {[%emt 0:04:30]} 20. Rhb1 {[%emt 0:00:30]} (20. a5 $16) 20... b6 {[%emt 0:01:30]} 21. a5 {[%emt 0:05:30]} b5 {[%emt 0:00:30]} 22. a6 {[%emt 0:00:30]} Bg6 {[%emt 0:03:30]} 23. g4 {[%emt 0:05:30]} h5 {[%emt 0:03:30]} 24. Qg3 {[%emt 0:03:30]} Ka8 {[%emt 0:03:30]} 25. Nb7 {[%emt 0:09:30]} Rd7 {[%emt 0:00:30]} 26. Nc5 {[%emt 0:03:30]} Rdd8 {[%emt 0:01:30]} 27. Rh1 {[%emt 0:01:30]} Rh7 {[%emt 0:05:30]} 28. h4 $11 {[%emt 0:04:30]} Rdh8 $1 {[%emt 0:07:51]} 29. hxg5 {[%emt 0:01:30]} fxg5 {[%emt 0:00:08]} (29... h4 $11 {keeps the balance.} 30. Qh2 fxg5) 30. gxh5 {[%emt 0:00:30]} Bxh5 {[%emt 0:01:09]} 31. Nd3 {[%emt 0:01:30]} (31. Raf1 $16) 31... Rh6 {[%emt 0:11:08]} 32. Ne5 {[%emt 0:00:30]} g4 {[%emt 0:03:31]} 33. Raf1 {[%emt 0:06:35]} Qd6 {[%emt 0:02:00]} 34. Qf4 {[%emt 0:08:04]} Qe6 {[%emt 0:02:28]} 35. Qf8+ {[%emt 0:04:46]} Be8 {[%emt 0:00:17]} 36. Qxh8 {[%emt 0:00:17]} Rxh8 {[%emt 0:00:14]} 37. Rxh8 {[%emt 0:00:05]} Kb8 {[%emt 0:00:47]} 38. Rff8 {[%emt 0:00:05]} Kc7 {[%emt 0:00:11]} 39. Rxe8 {[%emt 0:00:20]} Qf5 {[%emt 0:00:17]} 40. Rc8+ {[%emt 0:02:35]} Kb6 {[%emt 0:00:06]} 41. Rxc6+ {[%emt 0:00:13]} Ka5 {[%emt 0:00:08]} 42. Rh1 {[%emt 0:02:09]} Qf2+ {[%emt 0:00:38]} 43. Kc1 {[%emt 0:00:02]} Qg2 {[%emt 0:01:11]} 44. Re1 {[%emt 0:00:52]} b4 {[%emt 0:01:25]} 45. Kb2 {[%emt 0:00:28]} Kb5 {[%emt 0:00:47]} 46. Ra1 {[%emt 0:00:47]} bxc3+ {[%emt 0:00:34]} 47. Kxc3 {[%emt 0:00:39]} Qe2 {[%emt 0:00:25]} 48. Rc5+ {[%emt 0:00:16]} 1-0